Cogmind - Beta 14 @@@ ROGUE MODE // 2024.10.07 @ 14:42:36 Player: anastasia Result: Destroyed by H-55 Commando with Assault Rifle Performance ------------- Evolutions (3) 1500 Regions Visited (8) 1600 Robots Destroyed (122) 610 Value Destroyed (4477) 4477 Prototype IDs (4) 80 Alien Tech Used (0) 0 Bonus (402) 402 TOTAL SCORE: 8669 Bonus ------- High Alert Combat Kills 106 Follower Combat Kills 80 Entered Garrisons 200 Aligned with FarCom 300 Friendly Fire -284 Cogmind --------- Core Integrity 0/700 Matter 34/300 Energy 150/150 System Corruption 2% Temperature Cool (-100) Movement Core (1600) Ox31 Location -7/Factory Parts ------- > --- POWER (1) -------- Micro Nuclear Core > --- PROPULSION (2) --- (None) > --- UTILITY (5) ------ Cryofiber Web Huge Storage Unit Advanced Targeting Computer > --- WEAPON (5) ------- Flak Gun Assault Cannon > --- INVENTORY (25) --- Light Nuclear Core Light Nuclear Core Light Nuclear Core Micro Fission Core Improved Targeting Computer Advanced Targeting Computer Energy Filter Microactuators Force Booster Improved Light Armor Plating System Shield Relay Coupler [Demolisher] (22) Particle Gun Advanced EMP Blaster Datajack Greatsword Peak State ------------ > --- POWER ------------ Light Nuclear Core > --- PROPULSION ------- Carbon-fiber Leg Carbon-fiber Leg > --- UTILITY ---------- Cryofiber Web Huge Storage Unit Targeting Computer Reaction Control System Improved Medium Armor Plating > --- WEAPON ----------- Heavy EM Shotgun Heavy Particle Cannon AWS/Gauss Assault Cannon > --- INVENTORY -------- Light Nuclear Core Light Nuclear Core Advanced Treads Advanced Treads Advanced Treads Advanced Treads Advanced Treads Advanced Treads Heat Sink Target Analyzer Energy Filter Improved Medium Armor Plating System Shield Improved EM Shotgun Light Assault Rifle Heavy Assault Rifle Advanced EMP Blaster Grenade Launcher Rocket Launcher Datajack Heavy Hammer [Rating: 52] Favorites ----------- Power Light Nuclear Core Engine Improved Deuterium Engine Power Core Light Nuclear Core Propulsion Advanced Treads Treads Advanced Treads Leg Carbon-fiber Leg Utility Huge Storage Unit Device Cryofiber Web Storage Huge Storage Unit Processor Advanced Targeting Computer Hackware Hacking Suite Protection Improved Medium Armor Plating Weapon Particle Gun Energy Gun Particle Gun Energy Cannon Heavy Particle Cannon Ballistic Gun Light Assault Rifle Ballistic Cannon Assault Cannon Launcher Advanced EMP Blaster Build | -11 -10 -10 -10 -9 -8 -7 -7 -7 ------- Run | Yrd Mat Min Exi Min Mat Fac Gar Fac Slots Evolved 6 | . . . . . 4 2 . . Power . | . . . . . . . . . Propulsion . | . . . . . . . . . Utility 3 | . . . . . 2 1 . . Weapon 3 | . . . . . 2 1 . . Parts Attached 87 | 6 6 2 3 4 16 25 10 15 Power 7 | 1 1 . . 1 1 1 . 2 Engine 3 | 1 . . . 1 . . . 1 Core 4 | . 1 . . . 1 1 . 1 Reactor . | . . . . . . . . . Propulsion 18 | 2 2 . . 1 5 3 3 2 Treads 16 | 2 2 . . 1 3 3 3 2 Leg 2 | . . . . . 2 . . . Wheel . | . . . . . . . . . Hover . | . . . . . . . . . Flight . | . . . . . . . . . Utility 21 | 1 3 . . 1 5 6 . 5 Device 8 | . 1 . . 1 3 . . 3 Storage 3 | 1 2 . . . . . . . Processor 4 | . . . . . . 4 . . Hackware 1 | . . . . . 1 . . . Protection 5 | . . . . . 1 2 . 2 Artifact . | . . . . . . . . . Weapon 41 | 2 . 2 3 1 5 15 7 6 Energy Gun 9 | 1 . . . . 2 3 3 . Energy Cannon 2 | . . . . . . 1 1 . Ballistic Gun 15 | 1 . 2 3 1 1 3 2 2 Ballistic Cannon 8 | . . . . . 1 3 1 3 Launcher 7 | . . . . . 1 5 . 1 Special Weapon . | . . . . . . . . . Impact Weapon . | . . . . . . . . . Slashing Weapon . | . . . . . . . . . Piercing Weapon . | . . . . . . . . . Special Melee Weapon . | . . . . . . . . . Unidentified Prototypes 4 | . . . 1 . 3 . . . Parts Lost 26 | . . . . 3 1 6 5 11 Power . | . . . . . . . . . Propulsion 5 | . . . . 1 . 1 . 3 Utility 5 | . . . . 1 . 1 1 2 Weapon 16 | . . . . 1 1 4 4 6 Highest Loss Streak 5 | . . . . 3 1 3 3 5 To Critical Strikes . | . . . . . . . . . Average Slot Usage (%) 94 | . 99 100 100 98 89 96 93 91 Engine 1 | . 8 . . 4 . . . 5 Core 7 | . 5 14 14 9 8 7 7 1 Treads 15 | . 28 28 28 28 7 10 14 12 Leg 3 | . . . . . 10 4 . . Device 10 | . 1 . . 3 17 9 7 20 Storage 12 | . 25 28 28 22 9 7 7 7 Processor 6 | . . . . . . 14 21 7 Protection 2 | . . . . . 7 5 . . Energy Gun 5 | . 14 . . . . 8 6 12 Energy Cannon 1 | . . . . . . 3 5 . Ballistic Gun 13 | . 14 28 28 28 20 5 2 7 Ballistic Cannon 6 | . . . . . 6 7 16 10 Launcher 2 | . . . . . . 7 1 . Peak Build Rating 52 | 6 12 13 26 14 46 52 45 44 Average Rating 33 | 4 8 12 13 13 42 42 41 40 On Entrance 20 | . 6 12 13 14 13 46 45 37 Naked Turns . | . . . . . . . . . Heaviest Build 123 | 14 91 92 91 91 113 119 120 123 Greatest Support 46 | 40 46 46 46 46 46 44 44 44 Greatest Overweight (x) 40 | . 1 1 1 1 3 4 5 40 Average Overweight (x) 1 | . . 1 1 1 2 2 2 3 Largest Inventory Capacity 25 | 8 25 25 25 25 25 25 25 25 Average Capacity 24 | 6 13 25 25 25 25 25 25 25 Most Carried 24 | 3 8 10 12 10 24 23 19 23 Average Carried 14 | 1 6 7 9 9 15 17 17 19 Final Capacity 25 | 8 25 25 25 25 25 25 25 25 Final Carried 24 | 3 7 8 10 9 24 17 16 17 Class Distribution -------------------- 35% | Gunner 29% | Mutant 21% | Tank 7% | Skirmisher 5% | Scavenger-Gunner Dominant Class ---------------- Mutant | -10/Materials Mutant | -10/Mines Mutant | -10/Exiles Mutant | -9/Mines Tank | -8/Materials Gunner | -7/Factory Gunner | -7/Garrison Gunner | -7/Factory Resources | -11 -10 -10 -10 -9 -8 -7 -7 -7 ----------- Run | Yrd Mat Min Exi Min Mat Fac Gar Fac Matter Collected 2737 | 232 171 126 . 184 218 821 337 648 Remotely . | . . . . . . . . . Salvage Created 4478 | . 243 192 . 119 980 1574 554 816 Parts 260 | . 20 26 . 4 63 78 31 38 Haulers Intercepted 1 | . . . . . . 1 . . Recyclers Shooed 1 | . . . . . . 1 . . Parts Field Recycled . | . . . . . . . . . Retrieved Matter . | . . . . . . . . . Parts Self-Destructed . | . . . . . . . . . Prevented . | . . . . . . . . . Kills | -11 -10 -10 -10 -9 -8 -7 -7 -7 ------- Run | Yrd Mat Min Exi Min Mat Fac Gar Fac Combat Hostiles Destroyed 94 | . 8 8 . 3 19 28 13 15 Guns 59 | . 8 8 . 3 16 13 4 7 Cannons 29 | . . . . . 3 10 9 7 AOE 5 | . . . . . . 4 . 1 Classes Destroyed 14 | . 3 1 . 1 4 3 1 1 Worker 6 | . 1 1 . . . 2 . 2 Builder 8 | . . 1 . . 3 2 . 2 Hauler 1 | . . . . . . 1 . . Recycler 4 | . . . . . 1 2 . 1 Mechanic 2 | . . . . . . 2 . . Operator 1 | . . . . . 1 . . . Watcher 5 | . . . . . 2 1 . 2 Swarmer 19 | . 3 6 . . 5 2 3 . Grunt 48 | . 5 2 . 1 5 18 8 9 Duelist 1 | . . . . . . . . 1 Sentry 14 | . . . . 2 6 3 2 1 Hunter 4 | . . . . . 3 . . 1 Programmer 8 | . . . . . . 5 . 3 Infiltrator 1 | . . . . . . . 1 . Best Kill Streak 9 | . 3 7 . 2 9 9 3 4 Combat Bots Only 6 | . 3 6 . 2 6 4 3 3 Max Kills in Single Turn 4 | . 2 2 . 1 2 4 1 2 Gunslinging 1 | . 1 . . . . . . . Exploded 1 | . . . . . . 1 . 1 Melee . | . . . . . . . . . Uniques/NPCs Destroyed . | . . . . . . . . . Combat | -11 -10 -10 -10 -9 -8 -7 -7 -7 -------- Run | Yrd Mat Min Exi Min Mat Fac Gar Fac Hostile Shots Fired 641 | . 53 41 . 57 46 200 90 154 Missed 192 | . 16 15 . 16 10 74 11 50 Damage Taken 6317 | . 384 250 . 611 433 1757 1349 1533 Core 967 | . 34 50 . 88 85 271 247 192 Absorbed by Shields 103 | . . . . . 103 . . . Core Remaining (%) 71 | 100 . . . 31 84 . . . Volleys Fired 224 | . 38 18 . 18 18 63 23 46 Largest 5 | . 2 2 . 2 2 5 5 5 Hottest 284 | . 70 43 . 43 64 224 284 250 Shots Fired 733 | . 76 34 . 36 105 204 90 188 Gun 491 | . 76 34 . 36 97 96 38 114 Cannon 230 | . . . . . 8 98 51 73 Launcher 12 | . . . . . . 10 1 1 Special . | . . . . . . . . . Kinetic 498 | . 38 34 . 36 105 111 48 126 Thermal 196 | . 38 . . . . 56 41 61 Explosive 8 | . . . . . . 6 1 1 Electromagnetic 31 | . . . . . . 31 . . Robot Hit Streak 20 | . 7 5 . 20 19 20 10 10 Robot Miss Streak 13 | . 3 4 . 1 2 4 3 13 Penetration Max 1 | . . . . . . . . 1 Secondary Targets 3 | . 3 . . . . . . . Max Gunslinging Chain 1 | . 1 . . . . . . . Autonomous 77 | . . . . . 71 6 . . Shots Hit Robots 488 | . 44 23 . 36 86 145 43 111 Core Hits 242 | . 18 13 . 8 40 84 27 52 Critical Kills 2 | . . . . . 1 1 . . Critical Parts Destroyed 3 | . 1 . . . 1 . . 1 Critical Strikes 22 | . 5 . . . 2 2 6 7 Burn 12 | . 4 . . . . . 3 5 Meltdown 1 | . . . . . . 1 . . Destroy 4 | . 1 . . . 2 . . 1 Blast 5 | . . . . . . 1 3 1 Melee Attacks . | . . . . . . . . . Impact . | . . . . . . . . . Slashing . | . . . . . . . . . Piercing . | . . . . . . . . . Sneak Attacks . | . . . . . . . . . Combat Hostiles . | . . . . . . . . . Follow-up Attacks . | . . . . . . . . . Damage Inflicted 10963 | . 613 344 . 447 2203 3756 1079 2521 Guns 6467 | . 590 344 . 447 1991 1338 381 1376 Cannons 3576 | . . . . . 165 1722 584 1105 Explosions 816 | . . . . . . 665 114 37 Melee . | . . . . . . . . . Ramming 104 | . 23 . . . 47 31 . 3 Kinetic 7379 | . 290 344 . 447 2156 1885 441 1816 Thermal 2499 | . 300 . . . . 1010 524 665 Explosive 530 | . . . . . . 379 114 37 Electromagnetic 451 | . . . . . . 451 . . Impact . | . . . . . . . . . Slashing . | . . . . . . . . . Piercing . | . . . . . . . . . Highest Corruption 2 | . . . . . . 1 1 2 Average Corruption 1 | . . . . . . 1 1 1 Corruption Purged . | . . . . . . . . . Corruption Blocked . | . . . . . . . . . Effects 29 | . . . . . . 7 8 14 Message Errors 6 | . . . . . . 2 . 4 Matter Fused 6 | . . . . . . 1 . 5 Heat Flow Errors 4 | . . . . . . 1 1 2 Energy Discharges 6 | . . . . . . 1 3 2 Parts Rejected 1 | . . . . . . . 1 . Data Loss (minor) 3 | . . . . . . 2 1 . Data Loss (major) 2 | . . . . . . . 1 1 Misfires 1 | . . . . . . . 1 . Overload Shots . | . . . . . . . . . Overflow Damage 131 | . . . . . 8 50 17 56 Projectiles 127 | . . . . . 8 46 17 56 Explosions 1 | . . . . . . 1 . . Melee 3 | . . . . . . 3 . . Knockbacks 20 | . 1 . . . . 5 3 11 Impact 1 | . 1 . . . . . . . Kinetic 18 | . . . . . . 4 3 11 Secondary 1 | . . . . . . 1 . . Self-Inflicted Damage 187 | . . . . . . 127 60 . Shots 5 | . . . . . . 4 1 . Rammed 5 | . 1 . . . 2 1 . 1 Targets Rammed 8 | . 2 . . . 3 2 . 1 Kicked 2 | . . . . . 1 1 . . Crushed 1 | . 1 . . . . . . . Highest Temperature 695 | . 108 18 . 30 38 617 695 259 Average Temperature 153 | . 27 9 . 12 13 191 292 76 Received Heat Transfer 2040 | . 138 78 . 189 96 606 594 339 Effects 37 | . . . . . . 16 21 . Shutdowns 3 | . . . . . . 1 2 . Energy Bleed 6 | . . . . . . 4 2 . Interference 10 | . . . . . . 2 8 . Matter Decay 6 | . . . . . . 2 4 . Short Circuit 3 | . . . . . . 2 1 . Damage (minor) 4 | . . . . . . 1 3 . Damage (major) 3 | . . . . . . 3 . . Damage (core) 2 | . . . . . . 1 1 . Siege Activations . | . . . . . . . . . Robots Corrupted 1 | . . . . . . 1 . . Combat Hostiles . | . . . . . . . . . Parts Fried 1 | . . . . . . 1 . . Impact Corruptions 1 | . . . . . . 1 . . Robots Melted 1 | . . . . . . 1 . . Combat Hostiles 1 | . . . . . . 1 . . Parts Melted 7 | . 2 . . . . 2 2 1 Heat Transferred 5985 | . 1184 . . . . 1693 1295 1813 Parts Sabotaged . | . . . . . . . . . Parts Stolen . | . . . . . . . . . Parts Stripped . | . . . . . . . . . Power Chain Reactions 3 | . . . . . . 3 . . Alert | -11 -10 -10 -10 -9 -8 -7 -7 -7 ------- Run | Yrd Mat Min Exi Min Mat Fac Gar Fac Peak Influence 610 | . 220 222 . 60 254 352 610 365 Initial 319 | . . 22 . . 23 102 231 319 Average 175 | . 61 124 . 16 114 188 404 238 Maximum Alert Level 2 | . 1 1 . . 1 1 2 1 Low Security (%) 62 | 100 98 61 . 100 78 66 . 39 Level 1 31 | . 1 38 . . 21 33 44 60 Level 2 5 | . . . . . . . 55 . Level 3 . | . . . . . . . . . Level 4 . | . . . . . . . . . Level 5 . | . . . . . . . . . High Security . | . . . . . . . . . Max Security . | . . . . . . . . . Squads Dispatched 21 | . 2 . . . 1 13 . 5 Investigation 2 | . . . . . 1 1 . . Extermination 8 | . . . . . . 5 . 3 Reinforcement 5 | . 2 . . . . 1 . 2 Assault . | . . . . . . . . . Garrison 6 | . . . . . . 6 . . Intercept . | . . . . . . . . . Searches Triggered . | . . . . . . . . . Construction Impeded 1 | . . . . . . 1 . . Haulers Reinforced 2 | . . . . . . . . 2 Active Scanning Responses . | . . . . . . . . . Cargo Convoy Interrupts . | . . . . . . . . . Stealth | -11 -10 -10 -10 -9 -8 -7 -7 -7 --------- Run | Yrd Mat Min Exi Min Mat Fac Gar Fac Distress Signals 6 | . 1 . . . 2 1 . 2 Communications Jammed . | . . . . . . . . . Distress Signals . | . . . . . . . . . Times Spotted 124 | . 14 8 . 3 21 32 15 31 Peak Tracking Total 6 | . 3 3 . 2 6 4 4 5 Tactical Retreats 4 | . . . . . 1 . 1 2 Traps | -11 -10 -10 -10 -9 -8 -7 -7 -7 ------- Run | Yrd Mat Min Exi Min Mat Fac Gar Fac Traps Triggered 6 | . . . . . 1 . 4 1 Indirectly . | . . . . . . . . . Trap Hack Attempts . | . . . . . . . . . Triggered . | . . . . . . . . . Disarmed . | . . . . . . . . . Reprogrammed . | . . . . . . . . . Reused . | . . . . . . . . . Traps Extracted . | . . . . . . . . . Installed . | . . . . . . . . . Triggered . | . . . . . . . . . Machines | -11 -10 -10 -10 -9 -8 -7 -7 -7 ---------- Run | Yrd Mat Min Exi Min Mat Fac Gar Fac Machines Disabled 12 | . . . . . 3 6 1 2 Max in Single Turn 2 | . . . . . 1 2 1 1 Garrison Relay 1 | . . . . . . . 1 . Machines Repaired . | . . . . . . . . . Machines Dismantled . | . . . . . . . . . Machines Sabotaged . | . . . . . . . . . Overloaded Fab Kills . | . . . . . . . . . Hacking | -11 -10 -10 -10 -9 -8 -7 -7 -7 --------- Run | Yrd Mat Min Exi Min Mat Fac Gar Fac Machines Accessed 15 | . 2 . . . 5 6 1 1 Terminals 10 | . 1 . . . 5 3 1 . Fabricators 1 | . . . . . . . . 1 Repair Stations 1 | . . . . . . 1 . . Recycling Units 1 | . 1 . . . . . . . Scanalyzers 1 | . . . . . . 1 . . Garrison Access 1 | . . . . . . 1 . . Total Hacks 34 | . 7 . . . 11 11 3 2 Successful 15 | . 4 . . . 7 4 . . Failed 19 | . 3 . . . 4 7 3 2 Catastrophic 5 | . . . . . 2 2 . 1 Database Lockouts . | . . . . . . . . . Manual 2 | . . . 1 . 1 . . . Terminals 19 | . 2 . . . 11 3 3 . Fabricators 2 | . . . . . . . . 2 Repair Stations 5 | . . . . . . 5 . . Recycling Units 5 | . 5 . . . . . . . Scanalyzers 2 | . . . . . . 2 . . Garrison Access 1 | . . . . . . 1 . . Terminal Hacks 11 | . 2 . . . 7 2 . . Record 3 | . . . . . 3 . . . Open DSF 1 | . . . . . . 1 . . Level Access Points 1 | . . . . . 1 . . . Emergency Access Points 1 | . 1 . . . . . . . Locate Traps 1 | . . . . . . 1 . . Assault Status 1 | . . . . . 1 . . . Hauler Manifests 1 | . . . . . 1 . . . Registered Components 1 | . . . . . 1 . . . Zone Layout 1 | . 1 . . . . . . . Fabricator Hacks . | . . . . . . . . . Repair Station Hacks 1 | . . . . . . 1 . . Scan Component 1 | . . . . . . 1 . . Recycling Unit Hacks 2 | . 2 . . . . . . . Report Inventory 1 | . 1 . . . . . . . Retrieve Matter 1 | . 1 . . . . . . . Scanalyzer . | . . . . . . . . . Garrison Access Hacks 1 | . . . . . . 1 . . Unlock Access 1 | . . . . . . 1 . . Unauthorized Hacks . | . . . . . . . . . Terminals . | . . . . . . . . . Fabricators . | . . . . . . . . . Repair Stations . | . . . . . . . . . Recycling Units . | . . . . . . . . . Scanalyzers . | . . . . . . . . . Garrison Access . | . . . . . . . . . Data Cores Recovered 1 | . . . . . 1 . . . Used . | . . . . . . . . . Hacking Detections 10 | . 1 . . . 4 3 1 1 Full Trace Events 3 | . 1 . . . . 1 1 . Feedback Events . | . . . . . . . . . Feedback Blocked . | . . . . . . . . . Robot Schematics Acquired . | . . . . . . . . . Robots Built . | . . . . . . . . . Authchips . | . . . . . . . . . Time . | . . . . . . . . . Total Robot Build Rating . | . . . . . . . . . Part Schematics Acquired . | . . . . . . . . . Parts Built . | . . . . . . . . . Authchips . | . . . . . . . . . Time . | . . . . . . . . . Total Part Build Rating . | . . . . . . . . . Parts Repaired . | . . . . . . . . . Time . | . . . . . . . . . Parts Recycled . | . . . . . . . . . Recycled Matter . | . . . . . . . . . Retrieved Matter . | . . . . . . . . . Retrieved Components . | . . . . . . . . . Parts Scanalyzed . | . . . . . . . . . Part Schematics Acquired . | . . . . . . . . . Parts Damaged . | . . . . . . . . . Bothacking | -11 -10 -10 -10 -9 -8 -7 -7 -7 ------------ Run | Yrd Mat Min Exi Min Mat Fac Gar Fac Used RIF Installer . | . . . . . . . . . Robots Hacked . | . . . . . . . . . Non-combat . | . . . . . . . . . Combat . | . . . . . . . . . Robot Hacks Applied . | . . . . . . . . . Relay Couplers Released 3 | . . . . . . . 3 . Machine Destruction 3 | . . . . . . . 3 . Fabnet Peak Effective % . | . . . . . . . . . Robots Rewired . | . . . . . . . . . Allies Hacked . | . . . . . . . . . Hacks Repelled . | . . . . . . . . . Allies | -11 -10 -10 -10 -9 -8 -7 -7 -7 -------- Run | Yrd Mat Min Exi Min Mat Fac Gar Fac Total Allies 2 | . . . . . . . 2 . Largest Group 2 | . . . . . . . 2 . Highest-Rated Group 157 | . . . . . . . 157 . Highest-Rated Ally 95 | . . . . . . . 95 . Total Orders . | . . . . . . . . . Ally Attacks 11 | . . . . . . . 11 . Total Damage 533 | . . . . . . . 533 . Kills 2 | . . . . . . . 2 . Allies Corrupted . | . . . . . . . . . Allies Melted . | . . . . . . . . . Intel | -11 -10 -10 -10 -9 -8 -7 -7 -7 ------- Run | Yrd Mat Min Exi Min Mat Fac Gar Fac Robot Analysis Total . | . . . . . . . . . Derelict Logs Recovered 1 | . . . . 1 . . . . Drone Launches . | . . . . . . . . . Drone Recoveries . | . . . . . . . . . Exploration | -11 -10 -10 -10 -9 -8 -7 -7 -7 ------------- Run | Yrd Mat Min Exi Min Mat Fac Gar Fac Turns Passed 11687 | 65 790 394 1273 789 2476 3051 1091 1758 Spaces Moved 3649 | 36 331 137 529 298 729 884 301 404 Core 15 | 3 . . . . . . . 12 Treads 2943 | 33 331 137 529 298 292 630 301 392 Legs 691 | . . . . . 437 254 . . Wheels . | . . . . . . . . . Hover . | . . . . . . . . . Flight . | . . . . . . . . . Fastest Speed 50 | 50 160 240 240 240 305 305 305 305 Average Speed 287 | 150 183 240 240 240 320 314 315 360 Slowest Speed 2050 | 160 240 240 240 240 330 465 545 2050 Overloaded Moves . | . . . . . . . . . Propulsion Burnouts . | . . . . . . . . . Robots Hopped . | . . . . . . . . . Cave-ins Triggered . | . . . . . . . . . Exploration Rate (%) 40 | 3 50 44 90 55 55 21 33 11 Regions Visited 8 Branch Regions 3 Pre-discovered Areas 1 | . . 1 . . . . . . Known Exits Taken 2 | . . . . . 1 1 . . Unknown Exits Taken 5 | 1 1 1 1 1 . . . . Scrap Searched 1 | . . . . 1 . . . . Spaces Dug . | . . . . . . . . . Terrain Destroyed 130 | . . . . . 52 31 14 33 Melee . | . . . . . . . . . Projectile 73 | . . . . . 52 5 . 16 AOE 57 | . . . . . . 26 14 17 Terrain Rammed . | . . . . . . . . . Walls Destroyed . | . . . . . . . . . Machines Disabled . | . . . . . . . . . Actions | -11 -10 -10 -10 -9 -8 -7 -7 -7 --------- Run | Yrd Mat Min Exi Min Mat Fac Gar Fac Total 4358 | 44 439 171 535 341 832 1011 388 597 Wait 265 | . 44 9 . 18 34 8 37 115 Move 3642 | 35 330 136 528 297 728 884 300 404 Hop . | . . . . . . . . . Pick Up 79 | 3 11 3 1 3 26 13 6 13 Fast Attach 7 | 6 1 . . . . . . . Attach 63 | . 4 2 3 4 9 23 6 12 Detach 13 | . 1 1 3 . 1 5 1 1 Swap 17 | . 1 . . . 7 2 4 3 Drop 32 | . 7 2 . 1 6 11 3 2 Fire 224 | . 38 18 . 18 18 63 23 46 Melee . | . . . . . . . . . Ram . | . . . . . . . . . Kick 2 | . . . . . 1 1 . . Crush 6 | . 2 . . . 2 1 . 1 Escape Stasis 8 | . . . . . . . 8 . Rewire . | . . . . . . . . . Trap . | . . . . . . . . . Miscellaneous . | . . . . . . . . . Route ------- -11/Scrapyard -10/Materials (discovered 2 exits: [*Mat] / [*Min]) -10/Mines (discovered 2 exits: [*Mat] / *Exi) -10/Exiles -9/Mines -8/Materials (discovered 3 exits: *Fac x3) -7/Factory (discovered 2 exits: [*Fac] / Gar) -7/Garrison (discovered 2 exits: *Fac x2) -7/Factory History --------- Turn | Location | Event 8 | -11/Scrapyard | Discovered new exit (range 15) 66 | -11/Scrapyard | Entered Materials 307 | -10/Materials | Build established: Mutant 311 | -10/Materials | Discovered new exit (range 14) 694 | -10/Materials | Discovered new exit (range 16) 856 | -10/Materials | Entered Mines 868 | -10/Mines | Discovered new exit (range 13) 873 | -10/Mines | Learned location of Storage (-7) 1031 | -10/Mines | Received a Rocket Launcher from a helpful Derelict 1238 | -10/Mines | Deemed a non-threat by the Exiles lab entrance 1238 | -10/Mines | Discovered new exit (range 5) 1250 | -10/Mines | Entered Exiles 1308 | -10/Exiles | Met 8R-AWN 1346 | -10/Exiles | Met EX-HEX 1423 | -10/Exiles | Met EX-BIN 1452 | -10/Exiles | Aligned with FarCom system 1454 | -10/Exiles | Given EX-Vault access code 1510 | -10/Exiles | Opened EX-Vault 1524 | -10/Exiles | Found Prototype Ballistic Gun 1526 | -10/Exiles | Identified AWS/Gauss 1580 | -10/Exiles | Warned to stay clear of 0b10 Research branches 1645 | -10/Exiles | Met EX-DEC 1789 | -10/Exiles | Discovered new exit (range 11) 1982 | -10/Exiles | Visited The Gauntlet 2523 | -10/Exiles | Left Exiles lab with AWS/Gauss 2523 | -10/Exiles | Entered Mines 2539 | -9/Mines | Met a Derelict bent on vengeance 2605 | -9/Mines | Learned Materials stockpile data 2684 | -9/Mines | Discovered new exit (range 5) 3006 | -9/Mines | Core integrity fell below 50% 3058 | -9/Mines | Lost 3 parts (1n1u1w) 3312 | -9/Mines | Entered Materials 3312 | -8/Materials | Evolved 4 slots: Utility x2, Weapon x2 3669 | -8/Materials | Build established: Tank 4249 | -8/Materials | Build established: Skirmisher 4617 | -8/Materials | Build established: Tank 5063 | -8/Materials | Discovered new exit (range 9) 5354 | -8/Materials | Identified exit to Factory 5639 | -8/Materials | Build established: Skirmisher 5788 | -8/Materials | Entered Factory 5788 | -7/Factory | Evolved 2 slots: Utility x1, Weapon x1 5856 | -7/Factory | Discovered new exit (range 7) 6080 | -7/Factory | Build established: Tank 6199 | -7/Factory | AWS/Gauss suddenly broke down 6271 | -7/Factory | Garrison activated, responded to threat 7294 | -7/Factory | Build established: Gunner 7952 | -7/Factory | Garrison activated, responded to threat 8121 | -7/Factory | Lost 3 parts (1n2w) 8839 | -7/Factory | Identified exit to Garrison 8839 | -7/Factory | Entered Garrison 9077 | -7/Garrison | Found embedded Infiltrators 9283 | -7/Garrison | Triggered checkpoint 9325 | -7/Garrison | Garrison Relay disabled 9459 | -7/Garrison | Triggered checkpoint 9467 | -7/Garrison | Triggered checkpoint 9485 | -7/Garrison | Core integrity fell below 50% 9661 | -7/Garrison | Triggered checkpoint 9738 | -7/Garrison | Lost 3 parts (1u2w) 9745 | -7/Garrison | Discovered new exit (range 10) 9791 | -7/Garrison | Discovered new exit (range 6) 9930 | -7/Garrison | Entered Factory 11107 | -7/Factory | Build established: Scavenger-Gunner 11390 | -7/Factory | Core integrity fell below 20% 11440 | -7/Factory | Lost 5 parts (2n1u2w) 11688 | -7/Factory | Destroyed by H-55 Commando with Assault Rifle Last Messages --------------- 11659_ R-06 Scavenger collects Terrain Scan Processor. 11660_ Hvy. Rocket Launcher destroyed. 11660_ K-01 Serf collects debris. 11664_ Assault Cannon destroyed. 11664_ R-06 Scavenger collects Welding Torch. 11665_ System corrupted: Substantial component data lost. 11666_ R-06 Scavenger collects Wheel. 11668_ K-01 Serf destroyed. 11670_ K-01 Serf collects debris. 11676_ Gauss Rifle destroyed. 11676_ K-01 Serf collects debris. 11677_ H-55 Commando knocked back. 11680_ ALERT: Rogue bot located, Programmers report to Factory Zone 3M. 11680_ K-01 Serf collects debris. 11680_ Acquired 8 matter. 11682_ U-05 Engineer destroyed. 11682_ K-01 Serf collects debris. Map ----- +----------------------------------------------------+ | ?????????????????????????????????????????????????? | | ?????????????????????????????????????????????????? | | ?????????????????????????????????????????????????? | | ?????????????????????????????????????????????????? | | ?????????????????????????????????????????????????? | | ?????????????????????????????????????????????????? | | ?????????????????????????????????????????????????? | | ?????????????????????????????????????????????????? | | ???????????????????????????????##############????? | | ???????????????????????#???????# #???## | | ???????????????????### #??????# ###### | | ???????????????????# # ??????# + | | ???????????????????# # ??????# ###### | | ???????????????????## %# ??????# #????? | | ??????????????????## #+# ###???# ||| """" #????? | | ??????????????????# #???# ||| """" #????? | | ??????????????????# #???# ||| """" #????? | | ??????????????????# #???# """" #????? | | ??????????????????# #???# """" ###### | | ??????????????????# #???# """" # # | | ??????????????????# #???# # # | | ??????????????????# % #???#######/###### # | | ??????????????????# !*!* ##??????# + # | | ??????????????????# =! =!######### #### # | | ?????????????+#+########!k## % #??# # | | ??????????# # k r !%@* #??# # | | ????????????# h !*%k% #??# # | | ????????? %% %% = k #??# # | | ?????????? k r ######### | | ?????????? % | | ??????????? % % | | ??????????? | | ???????????#;####;##;# """""" " """" """""" | | ??????????????? #u """"""r"""""" """""" | | ?????????????? """"?# %"""""" """""" """""" | | ?????????????? ??"""?# """""" """""" """""" | | ?????????????????????# ?? | | ?????????????????????# ?? ??? | | ?????????????????????+ ?? ???? | | ?????????????????????# ??? ? ?????? | | ?????????????????????? ???? ? ????????? | | ??????????????????????????? ##?######????????? | | ??????????????????????????? #????????????????? | | ??????????????????????????? ?????????????????? | | ??????????????????????????? ? ?????????????????? | | ????????????????????????????? ?????????????????? | | ?????????????????????????????????????????????????? | | ?????????????????????????????????????????????????? | | ?????????????????????????????????????????????????? | | ?????????????????????????????????????????????????? | +----------------------------------------------------+ Best States ------------- Heat Dissipation 54 Energy Generation 16 Energy Capacity 400 Matter Stores 300 Matter Capacity 300 Sight Range 16 Terrain Scan Density 10 Base Temperature (-) 100 Armor Coverage 225 Evasion (%) 40 Targeting Accuracy 14 Target Analysis 5 Recoil Reduction 2 Energy Filtering 30 Kinecelleration 30 Offensive Hacking 10 Item Schematics ----------------- None Robot Schematics ------------------ None Fabricated ------------ Nothing Alien Tech Used ----------------- None Achievements -------------- Maybe Next Time I'll Detach My Launcher Challenges ------------ None Game ------ Seed BoreAntigravFlamer Manual? 0 Play Time 00:55:49 Cumulative 12.8 hours Start 2024.10.07 @ 13:48:13 End 2024.10.07 @ 14:42:36 Sessions 1 Manual Loads 0 Difficulty Rogue Special Mode None Game No. 21 Rogue 13 Adventurer 8 Explorer 0 Win Type - Total 0 Types 0/0/0/0/0/0/0/0/0 Lore% 11 Gallery% 19 Achievement% 18 Wizard Run 0 Options --------- Layout 1 ASCII 0 Keyboard 0 Movement Mouse Keybinds 0 Fullscreen 1 Font 32/SmallcapsGlow Map View 50x35 Zoom Use 0% Tactical HUD 1 Map Filters NONE Filters NONE Steam 1 RUN: e395b19d-06de-4602-97d9-89185f3b743d